bitfinex/quotes_ETHUSD_20250210
["timestamp","ask_amount","ask_price","bid_price","bid_amount"]
[1739175511015,9.09921,2646.1,2645.4,0.1463766]
[1739175511016,3.77861,2646.5,2646.0,2.1891453]
[1739175511627,3.77861,2646.5,2646.3,2.1891453]
[1739175511833,3.77871,2646.4,2646.3,2.1891453]
[1739175512133,7.55729,2646.5,2646.3,2.25575784]
[1739175512445,7.5573,2646.5,2646.3,2.25575784]
[1739175512761,3.77861,2646.5,2646.3,2.25575784]
[1739175512924,7.5573,2646.5,2646.3,2.25575784]
[1739175513121,3.77871,2646.4,2646.3,2.25575784]
[1739175513517,0.8059,2646.7,2646.3,2.25575784]
[1739175513720,3.77809,2646.9,2646.6,2.1891453]
[1739175513943,3.77827,2646.8,2646.6,2.1891453]
[1739175514141,3.77828,2646.7,2646.6,2.1891453]
[1739175515181,3.77809,2646.9,2646.6,2.1891453]
[1739175515440,7.55621,2646.9,2646.6,2.1891453]
[1739175515645,3.77809,2646.9,2646.6,2.1891453]
[1739175516147,3.77818,2646.8,2646.6,2.1891453]
[1739175516955,3.77802,2646.9,2646.6,2.1891453]
[1739175517355,3.77815,2646.8,2646.6,2.1891453]
[1739175517558,0.8059,2647.3,2646.7,2.1891453]
[1739175517861,9.09736,2647.4,2647.1,2.1891453]
[1739175518064,0.8217,2647.7,2647.1,2.1891453]
[1739175518243,3.77708,2647.6,2647.5,2.1891453]
[1739175518433,0.8217,2647.7,2647.5,2.1891453]
[1739175519526,0.8217,2647.7,2647.6,3.777]
[1739175519732,0.8217,2647.7,2647.5,2.1891453]
[1739175523228,3.77643,2648.0,2647.5,2.1891453]
[1739175523430,3.77673,2647.8,2647.2,5.9666153]
[1739175524374,3.77673,2647.8,2647.3,3.77742]
[1739175524576,3.77643,2648.0,2647.7,2.1891453]
[1739175525383,3.77667,2647.9,2647.7,2.1891453]
[1739175526878,3.77643,2648.0,2647.7,2.1891453]
[1739175527077,3.77633,2648.1,2647.8,0.06123993]
[1739175527377,3.77633,2648.1,2648.0,2.1891453]
[1739175527996,3.77633,2648.1,2648.0,2.25038523]
[1739175528200,3.77633,2648.1,2648.0,2.1891453]
[1739175529270,3.77657,2647.9,2647.2,5.9665953]
[1739175529618,3.77657,2647.9,2647.8,2.1891453]
[1739175530112,5.32,2648.3,2647.8,2.24814728]
[1739175530295,3.77656,2648.0,2647.8,2.24814728]
[1739175530493,3.77657,2647.9,2647.8,2.24814728]
[1739175531165,3.7762,2648.2,2647.8,2.24814728]
[1739175531365,0.55,2648.4,2648.1,2.1891453]
[1739175531613,0.55,2648.4,2648.1,5.9653153]
[1739175531792,0.55,2648.4,2648.2,0.05896299]
[1739175533604,0.55,2648.4,2648.3,3.776]
[1739175533915,0.55,2648.4,2648.3,0.05852642]
[1739175534209,0.55,2648.4,2648.2,3.77601]
[1739175534413,0.55,2648.4,2648.3,0.05852642]
[1739175534693,0.55,2648.4,2648.2,3.77601]
[1739175534893,0.55,2648.4,2648.3,0.05852642]
[1739175535086,0.55,2648.4,2648.2,3.77601]
[1739175535265,0.55,2648.4,2648.3,0.05852642]
[1739175535467,0.55,2648.4,2648.2,3.77601]
[1739175535668,0.55,2648.4,2648.3,0.05852642]
[1739175535879,0.55,2648.4,2648.1,5.9654253]
[1739175536266,0.55,2648.4,2648.2,0.05852642]
[1739175537289,4.32588,2648.4,2648.2,0.05852642]
[1739175537708,8.10185,2648.4,2648.2,0.05852642]
[1739175537900,3.776,2648.3,2648.2,0.05852642]
[1739175540102,0.55,2648.4,2648.2,0.05852642]
[1739175540420,3.776,2648.3,2648.2,0.05852642]
[1739175541122,3.77614,2648.2,2648.1,2.1891453]
[1739175541417,3.77614,2648.2,2648.1,2.24509053]
[1739175542685,3.77614,2648.2,2648.1,0.05594523]
[1739175542891,3.77657,2647.9,2647.8,2.1891453]
[1739175543084,3.77657,2647.9,2647.8,2.24521513]
[1739175543279,3.77623,2648.2,2647.8,2.24521513]
[1739175543480,3.77623,2648.2,2648.1,2.1891453]
[1739175543879,3.77623,2648.2,2648.1,2.24521513]
[1739175545010,3.77623,2648.2,2648.1,2.1891453]
[1739175545583,3.77657,2647.9,2647.8,2.1891453]
[1739175546097,3.77657,2647.9,2647.8,2.24521513]
[1739175547173,3.77644,2648.0,2647.8,2.24521513]
[1739175547394,3.77657,2647.9,2647.8,2.24521513]
[1739175548612,7.55302,2648.0,2647.8,2.24521513]
[1739175549439,3.77657,2647.9,2647.8,2.24521513]
[1739175549877,3.77657,2647.9,2647.8,2.1891453]
[1739175550079,3.77657,2647.9,2647.8,2.24589266]
[1739175550517,3.77645,2648.0,2647.8,2.24589266]
[1739175551231,5.32,2648.2,2647.8,2.24589266]
[1739175551543,0.55,2648.4,2648.1,2.1891453]
[1739175551988,0.55,2648.4,2648.2,0.05674736]
[1739175553103,4.32595,2648.4,2648.2,0.05674736]
[1739175553306,0.55,2648.4,2648.2,0.05674736]
[1739175553705,3.776,2648.3,2648.2,0.05674736]
[1739175554321,3.77657,2647.9,2647.8,2.1891453]
[1739175554605,3.77657,2647.9,2647.8,2.24589266]
[1739175555143,3.77657,2647.9,2647.8,2.1891453]
[1739175558016,3.777,2647.6,2647.5,2.1891453]
[1739175558215,3.77743,2647.3,2647.2,2.1891453]
[1739175558671,3.77729,2647.5,2647.2,2.2422112]
[1739175558856,7.55449,2647.5,2647.2,2.2422112]
[1739175559194,3.77688,2647.7,2647.2,4.4313565]
[1739175559451,3.77688,2647.7,2647.6,2.1891453]
[1739175559838,3.77688,2647.7,2647.6,2.24228125]
[1739175560349,3.77688,2647.7,2647.6,2.1891453]
[1739175560741,3.77672,2647.8,2647.6,2.1891453]
[1739175560922,6.77672,2647.8,2647.7,0.05313595]
[1739175561520,6.77672,2647.8,2647.6,2.1891453]
[1739175561728,3.77686,2647.7,2647.6,2.1891453]
[1739175561964,3.77686,2647.7,2647.6,2.24229682]
[1739175563663,3.77686,2647.7,2647.6,2.1891453]
[1739175564918,3.77686,2647.7,2647.6,2.24231238]
[1739175565770,3.77686,2647.7,2647.6,0.05316708]
[1739175565771,6.77686,2647.7,2647.6,0.05316708]
[1739175566184,3.77729,2647.4,2647.3,2.1891453]
[1739175566542,3.77729,2647.4,2647.3,2.24231238]
[1739175567475,3.77714,2647.5,2647.3,2.24231238]
[1739175568009,3.77729,2647.4,2647.3,2.24231238]
[1739175568471,3.77729,2647.4,2647.3,2.1891453]
[1739175569157,3.77714,2647.5,2647.3,2.1891453]
[1739175569470,3.77729,2647.4,2647.3,2.1891453]
[1739175569754,3.77714,2647.5,2647.3,2.1891453]
[1739175571871,3.77729,2647.4,2647.3,2.1891453]
[1739175574111,6.77729,2647.4,2647.3,2.1891453]
[1739175579778,6.77729,2647.4,2647.3,2.2426004]
[1739175580135,7.54939,2647.4,2647.3,0.0534551]
[1739175580447,3.77758,2647.2,2647.0,2.1891453]
[1739175580758,3.77672,2647.8,2647.1,4.3782906]
[1739175580957,4.5483,2648.2,2647.7,2.1891453]
[1739175581265,3.77672,2647.8,2647.7,2.1891453]
[1739175583046,3.77658,2647.9,2647.7,2.1891453]
[1739175584187,7.55325,2647.9,2647.7,2.1891453]
[1739175584382,3.77672,2647.8,2647.7,2.1891453]
[1739175584882,3.77638,2648.1,2647.7,2.1891453]
[1739175585043,3.77605,2648.3,2648.0,2.1891453]
[1739175585246,3.77617,2648.2,2648.0,2.1891453]
[1739175585442,3.77629,2648.1,2648.0,2.1891453]
[1739175585980,3.77616,2648.2,2648.0,2.1891453]
[1739175586679,3.77605,2648.3,2648.0,2.1891453]
[1739175586680,7.55219,2648.3,2648.0,2.1891453]
[1739175586896,3.77615,2648.2,2648.0,2.1891453]
[1739175587405,3.77605,2648.3,2648.1,0.05308158]
[1739175587696,3.77614,2648.2,2648.1,0.05308158]
[1739175590777,3.77614,2648.2,2648.0,2.1891453]
[1739175591184,3.77629,2648.1,2648.0,2.1891453]
[1739175596566,3.77629,2648.1,2648.0,2.24139414]
[1739175598094,3.77615,2648.2,2648.0,2.24139414]
[1739175598398,3.77603,2648.3,2648.0,2.24139414]
[1739175598578,3.77603,2648.3,2648.2,2.1891453]
[1739175598980,3.77603,2648.3,2648.2,2.24150306]
[1739175599315,4.58473,2648.3,2648.2,2.24150306]
[1739175600309,4.58473,2648.3,2648.2,0.05235776]
[1739175600597,4.58473,2648.3,2647.9,2.1891453]
[1739175600598,0.8087,2648.3,2647.9,2.1891453]
[1739175600767,3.7763,2648.1,2647.4,3.77724]
[1739175600971,3.7763,2648.1,2648.0,2.1891453]
[1739175601378,3.7763,2648.1,2648.0,2.2416353]
[1739175601690,7.55219,2648.3,2648.0,2.2416353]
[1739175602093,3.0,2648.4,2648.0,2.2416353]
[1739175602094,3.77614,2648.2,2648.0,2.2416353]
[1739175602290,3.77629,2648.1,2648.0,2.2416353]
[1739175602670,3.77629,2648.1,2648.0,2.1891453]
[1739175602877,3.77629,2648.1,2648.0,2.24161196]
[1739175603074,3.77629,2648.1,2648.0,2.1891453]
[1739175603290,3.77629,2648.1,2648.0,2.24161196]
[1739175604691,4.58499,2648.1,2648.0,2.24161196]
[1739175606219,4.58499,2648.1,2648.0,0.05246666]
[1739175606733,4.58499,2648.1,2647.7,2.1891453]
[1739175606734,3.77666,2647.9,2647.7,2.1891453]
[1739175606904,3.77672,2647.8,2647.7,2.1891453]
[1739175608673,3.77605,2648.3,2647.7,2.1891453]
[1739175608873,6.776,2648.3,2648.2,2.1891453]
[1739175609585,3.77643,2648.0,2647.9,2.1891453]
[1739175610297,4.57343,2648.0,2647.9,2.1891453]
[1739175611515,4.57343,2648.0,2647.2,5.9666953]
[1739175611516,4.57343,2648.0,2647.0,3.77773]
[1739175611715,3.77686,2647.7,2647.6,2.1891453]
[1739175612421,3.77741,2647.4,2647.3,2.1891453]
[1739175613497,7.55441,2647.5,2647.3,2.1891453]
[1739175613878,3.77729,2647.4,2647.3,2.1891453]
[1739175615701,3.77715,2647.5,2647.3,2.1891453]
[1739175616324,4.57429,2647.4,2647.3,2.1891453]
[1739175617622,3.77729,2647.4,2647.3,2.1891453]
[1739175618139,5.32,2647.5,2647.3,2.23359186]
[1739175618423,3.77694,2647.7,2647.3,2.23359186]
[1739175618625,3.77694,2647.7,2647.6,2.1891453]
[1739175619319,3.77694,2647.7,2647.6,2.23359186]
[1739175623833,4.56764,2647.7,2647.6,0.04444656]
[1739175624333,3.77729,2647.4,2647.3,2.1891453]
[1739175624634,4.56799,2647.4,2647.3,2.1891453]
[1739175624827,7.56799,2647.4,2647.3,2.1891453]
[1739175626604,6.77729,2647.4,2647.3,2.1891453]
[1739175630738,3.77729,2647.4,2647.3,2.1891453]
[1739175631652,6.77729,2647.4,2647.3,2.1891453]
[1739175633333,3.77715,2647.5,2647.3,2.1891453]
[1739175633718,9.097,2647.6,2647.4,0.08379498]
[1739175634046,5.32,2647.6,2647.4,0.08379498]
[1739175635107,3.77662,2647.9,2647.4,0.08379498]
[1739175635410,3.77662,2647.9,2647.8,2.1891453]
[1739175635743,3.77662,2647.9,2647.8,2.27266781]
[1739175636132,3.77643,2648.0,2647.8,2.27266781]
[1739175636486,3.77624,2648.2,2647.8,2.27266781]
[1739175636638,3.77624,2648.2,2648.1,2.1891453]
[1739175637104,3.77624,2648.2,2648.1,2.27266781]
[1739175637762,5.32,2648.3,2648.1,2.27266781]
[1739175637914,9.0959,2648.4,2648.1,2.1891453]
[1739175638336,9.0959,2648.4,2648.2,0.08303226]
[1739175638643,5.32,2648.4,2648.2,0.08303226]
[1739175638844,9.09588,2648.4,2648.2,0.08303226]
[1739175639010,9.09588,2648.4,2648.1,2.1891453]
[1739175639201,9.09588,2648.4,2648.2,0.08290779]
[1739175639626,5.32,2648.4,2648.2,0.08290779]
[1739175640143,4.87572,2648.5,2648.1,2.1891453]
[1739175640442,4.87572,2648.5,2648.4,2.1891453]
[1739175640865,1.1,2648.5,2648.4,2.1891453]
[1739175641042,1.1,2648.5,2648.4,2.27103376]
[1739175642878,1.1,2648.5,2648.4,4.46017906]
[1739175643170,1.1,2648.5,2648.4,4.3782906]
[1739175643322,1.1,2648.5,2648.4,8.23572017]
[1739175644568,9.09482,2649.2,2648.6,3.7755]
[1739175644773,9.09482,2649.2,2649.0,2.1891453]
[1739175645056,5.32,2649.2,2649.0,2.1891453]
[1739175645259,3.77486,2649.1,2649.0,2.1891453]
[1739175645855,5.32,2649.2,2649.0,2.1891453]
[1739175646019,9.09473,2649.2,2649.0,2.1891453]
[1739175646417,5.32,2649.2,2649.0,2.1891453]
[1739175646839,3.77439,2649.5,2649.0,2.1891453]
[1739175647057,3.77439,2649.5,2649.4,2.1891453]
[1739175647251,9.85704,2649.7,2649.4,2.1891453]
[1739175647252,3.77426,2649.6,2649.4,2.1891453]
[1739175647575,3.77429,2649.5,2649.4,2.1891453]
[1739175648018,3.77404,2649.7,2649.4,2.1891453]
[1739175648223,3.77377,2649.9,2649.4,2.1891453]
[1739175648453,3.77377,2649.9,2649.8,2.1891453]
[1739175649322,6.77377,2649.9,2649.8,2.1891453]
[1739175649519,3.77427,2649.6,2649.5,2.1891453]
[1739175650254,3.775,2649.0,2648.9,2.1891453]
[1739175652155,3.77543,2648.7,2648.6,2.1891453]
[1739175653226,3.77586,2648.4,2648.3,2.1891453]
[1739175653431,3.77582,2648.5,2648.3,2.1891453]
[1739175653745,3.77586,2648.4,2648.3,2.1891453]
[1739175654761,3.77568,2648.6,2648.3,2.1891453]
[1739175655654,9.09531,2648.8,2648.3,2.1891453]
[1739175655838,9.09531,2648.8,2648.7,2.1891453]
[1739175656273,5.32,2648.8,2648.7,2.1891453]
[1739175656478,3.77519,2648.9,2648.7,2.1891453]
[1739175657771,3.77508,2649.0,2648.7,2.1891453]
[1739175658070,3.77476,2649.2,2648.7,2.1891453]
[1739175658275,5.32,2649.3,2649.0,2.1891453]
[1739175658853,3.7742,2649.6,2649.0,5.9641453]
[1739175659175,3.77388,2649.8,2649.5,2.1891453]
[1739175659414,7.54786,2649.8,2649.5,2.1891453]
[1739175659557,3.77388,2649.8,2649.5,2.1891453]
[1739175659878,3.77412,2649.7,2649.5,2.1891453]
[1739175660242,3.77415,2649.6,2649.5,2.1891453]
[1739175660459,3.77412,2649.7,2649.5,2.1891453]
[1739175661149,3.77412,2649.7,2649.6,0.07426256]
[1739175661451,9.09384,2649.9,2649.6,0.07426256]
[1739175661649,0.19124463,2650.3,2649.6,4.45255316]
[1739175661650,0.7676,2650.3,2649.6,4.45255316]
[1739175661845,3.96352025,2651.0,2649.6,4.45255316]
[1739175661846,0.7676,2650.6,2650.2,2.1891453]
[1739175662058,3.77299,2650.5,2649.7,3.77387]
[1739175662247,3.77271,2650.7,2650.3,0.07408407]
[1739175662461,3.77271,2650.7,2649.9,3.7737]
[1739175662686,0.7676,2651.0,2650.4,0.07364187]
[1739175662864,4.53976,2651.0,2650.9,2.1891453]
[1739175663080,3.77216,2651.0,2650.9,2.1891453]
[1739175663276,3.77216,2651.0,2650.9,2.26278717]
[1739175663485,3.77216,2651.0,2650.9,2.1891453]
[1739175664158,3.77216,2651.0,2650.9,2.26249248]
[1739175665559,0.7676,2651.3,2650.9,2.26249248]
[1739175665758,3.77163,2651.4,2651.2,2.1891453]
[1739175666186,3.77163,2651.4,2651.3,0.07300606]
[1739175666354,3.77163,2651.4,2651.2,2.1891453]
[1739175666691,3.77163,2651.4,2651.3,0.07277355]
[1739175666894,3.77134,2651.6,2651.3,0.07277355]
[1739175667067,0.7676,2651.7,2651.5,2.1891453]
[1739175667068,5.32,2651.7,2651.5,2.1891453]
[1739175667458,5.32,2651.7,2651.6,0.07099812]
[1739175667718,5.32,2651.7,2651.6,2.75377264]
[1739175667982,9.09116,2651.7,2651.6,2.75377264]
[1739175668959,9.87106,2651.7,2651.6,0.07099812]
[1739175669254,3.77216,2651.0,2650.9,2.68277452]
[1739175669464,3.77216,2651.0,2650.6,2.68277452]
[1739175669659,3.77251,2650.8,2650.6,2.68277452]
[1739175669860,3.77251,2650.8,2650.7,0.06059287]
[1739175671592,3.77216,2651.0,2650.3,2.68277452]
[1739175671791,3.77282,2650.6,2650.3,2.68277452]
[1739175671994,3.77253,2650.8,2650.4,0.0613514]
[1739175672320,3.77253,2650.8,2650.7,2.68277452]
[1739175672973,3.77253,2650.8,2650.7,2.74412592]
[1739175673367,3.77253,2650.8,2650.7,0.0613514]
[1739175673671,3.77281,2650.6,2650.4,2.68277452]
[1739175674190,3.77253,2650.8,2650.4,2.68277452]
[1739175674409,3.7726,2650.7,2650.4,2.68277452]
[1739175674612,3.77275,2650.6,2650.4,2.68277452]
[1739175675671,3.77287,2650.5,2650.4,2.68277452]
[1739175676769,3.77275,2650.6,2650.4,2.68277452]
[1739175676965,6.0999,2651.1,2650.4,2.74412592]
[1739175676966,3.77248,2650.8,2650.4,2.74412592]
[1739175677171,3.7723,2650.9,2650.7,2.68277452]
[1739175677579,3.77244,2650.8,2650.7,2.68277452]
[1739175677987,5.32,2651.1,2650.7,2.68277452]
[1739175678196,3.77234,2650.9,2650.7,2.68277452]
[1739175678468,9.09212,2651.1,2650.7,2.68277452]
[1739175679901,3.77179,2651.3,2650.7,2.68277452]
[1739175680087,3.77188,2651.2,2651.0,2.68277452]
[1739175680293,3.77179,2651.3,2651.0,2.68277452]
[1739175680591,3.77201,2651.1,2651.0,2.68277452]
[1739175680982,3.77201,2651.1,2650.7,2.68277452]
[1739175681300,3.7723,2650.9,2650.7,2.68277452]
[1739175681604,7.54414,2651.1,2650.7,2.68277452]
[1739175682109,3.77201,2651.1,2650.7,2.68277452]
[1739175683304,3.77178,2651.3,2651.0,2.68277452]
[1739175683509,3.77201,2651.1,2651.0,2.68277452]
[1739175683971,3.77228,2651.0,2650.7,2.68277452]
[1739175685073,3.77201,2651.1,2650.7,2.68277452]
[1739175685305,3.77232,2650.9,2650.7,2.68277452]
[1739175685878,3.77244,2650.8,2650.7,2.68277452]
[1739175686625,3.77232,2650.9,2650.7,2.68277452]
[1739175686771,3.77244,2650.8,2650.7,2.68277452]
[1739175687596,3.77232,2650.9,2650.7,2.18179899]
[1739175687911,3.77244,2650.8,2650.7,2.18179899]
[1739175690134,3.77287,2650.5,2650.4,2.18179899]
[1739175690426,4.53367,2650.5,2650.4,2.18179899]
[1739175691228,3.77287,2650.5,2650.4,2.18179899]
[1739175691509,3.77286,2650.6,2650.4,2.24233232]
[1739175691728,3.77252,2650.8,2650.4,2.24233232]
[1739175691879,3.77252,2650.8,2650.7,2.18179899]
[1739175692309,3.77252,2650.8,2650.7,2.24223174]
[1739175692606,7.5447,2650.9,2650.7,2.24223174]
[1739175692855,3.77244,2650.8,2650.7,2.24223174]
[1739175693831,3.7723,2650.9,2650.7,2.24223174]
[1739175694513,7.54415,2651.1,2650.7,2.24223174]
[1739175694699,6.77202,2651.1,2651.0,2.18179899]
[1739175695099,6.77202,2651.1,2651.0,2.23865788]
[1739175695604,3.77202,2651.1,2651.0,2.23865788]
[1739175696046,3.77185,2651.3,2651.0,2.23865788]
[1739175696208,3.7717,2651.4,2651.0,2.23865788]
[1739175696209,3.77191,2651.2,2651.0,2.23865788]
[1739175696612,4.53281,2651.1,2651.0,2.23865788]
[1739175698829,3.77201,2651.1,2651.0,2.23865788]
[1739175699415,3.77191,2651.2,2651.0,2.23865788]
[1739175700733,3.77201,2651.1,2651.0,2.23865788]
[1739175700936,3.77161,2651.4,2651.0,2.23865788]
[1739175701234,7.54282,2651.6,2651.3,2.18179899]
[1739175701437,3.77141,2651.6,2651.5,2.18179899]
[1739175701642,6.77141,2651.6,2651.5,2.18179899]
[1739175701841,4.56355,2651.9,2651.5,2.18179899]
[1739175702036,3.77095,2651.9,2651.8,2.18179899]
[1739175702403,3.77095,2651.9,2651.8,2.2374978]
[1739175702838,3.77095,2651.9,2651.8,2.18179899]
[1739175703320,3.7713,2651.6,2651.5,2.18179899]
[1739175703707,3.7713,2651.6,2651.5,2.2374978]
[1739175705864,7.54257,2651.7,2651.5,2.2374978]
[1739175706271,3.77127,2651.7,2651.5,2.2374978]
[1739175706444,3.7713,2651.6,2651.5,2.2374978]
[1739175706942,3.77127,2651.7,2651.5,2.2374978]
[1739175707437,4.56354,2651.9,2651.5,2.2374978]
[1739175707636,8.33455,2651.9,2651.8,2.18179899]
[1739175709058,3.7713,2651.6,2651.5,2.18179899]
[1739175709455,3.7713,2651.6,2651.5,2.23745915]
[1739175710101,3.77116,2651.7,2651.5,2.23745915]
[1739175710576,3.77095,2651.9,2651.5,2.23745915]
[1739175710776,3.77095,2651.9,2651.8,2.18179899]
[1739175711479,3.77095,2651.9,2651.8,2.23745915]
[1739175712099,3.77095,2651.9,2651.8,2.18179899]
[1739175712287,3.77144,2651.6,2651.5,2.18179899]
[1739175712663,3.77144,2651.6,2651.5,2.23673252]
[1739175713702,3.77117,2651.7,2651.5,2.23673252]
[1739175713926,3.7713,2651.6,2651.5,2.23673252]
[1739175718269,3.77088,2651.9,2651.5,2.23673252]
[1739175718470,9.09081,2652.0,2651.8,2.18179899]
[1739175718707,9.09081,2652.0,2651.9,0.05369531]
[1739175718999,3.77081,2652.0,2651.9,0.05369531]
[1739175719977,4.57771,2652.0,2651.9,0.05369531]
[1739175720285,3.7713,2651.6,2651.5,2.18179899]
[1739175720480,3.7713,2651.6,2651.5,2.2354943]
[1739175720929,3.77113,2651.8,2651.5,2.2354943]
[1739175721216,3.77125,2651.7,2651.5,2.2354943]
[1739175721718,3.7713,2651.6,2651.5,2.2354943]
[1739175723911,3.77125,2651.7,2651.5,2.2354943]
[1739175724220,3.7713,2651.6,2651.5,2.2354943]
[1739175728540,3.77125,2651.7,2651.5,2.2354943]
[1739175728896,7.54252,2651.7,2651.5,2.2354943]
[1739175729124,3.7713,2651.6,2651.5,2.2354943]
[1739175730243,9.0909,2651.9,2651.5,2.2354943]
[1739175730431,9.0909,2651.9,2651.8,2.18179899]
[1739175730800,3.7709,2651.9,2651.8,2.23561025]
[1739175731585,3.7709,2651.9,2651.8,2.18179899]
[1739175731910,3.7709,2651.9,2651.8,1.68561025]
[1739175732106,3.7709,2651.9,2651.8,0.05381126]
[1739175732322,4.575,2651.9,2651.8,0.05381126]
[1739175732498,3.7713,2651.6,2651.5,2.18179899]
[1739175732719,3.77117,2651.7,2651.2,2.18179899]
[1739175732720,3.77184,2651.3,2651.2,2.18179899]
[1739175733799,3.77159,2651.5,2651.2,2.53221059]
[1739175733995,3.77139,2651.6,2651.2,2.53221059]
[1739175734202,9.09108,2651.8,2651.5,2.18179899]
[1739175734424,3.77117,2651.7,2651.5,2.18179899]
[1739175734645,9.09108,2651.8,2651.5,2.18179899]
[1739175736046,5.32,2651.8,2651.5,2.18179899]
[1739175736234,0.8041,2652.2,2651.6,3.7713]
[1739175736235,3.77053,2652.2,2651.6,3.7713]
[1739175736440,4.57434,2652.4,2652.1,2.18179899]
[1739175736662,3.77036,2652.3,2652.1,2.18179899]
[1739175736904,3.77045,2652.2,2652.1,2.18179899]
[1739175737028,3.77024,2652.4,2652.1,2.18179899]
[1739175737223,3.77024,2652.4,2652.1,2.23559121]
[1739175737464,3.77034,2652.3,2652.1,2.23559121]
[1739175737636,3.77024,2652.4,2652.1,2.23559121]
[1739175737997,3.77033,2652.3,2652.1,2.23559121]
[1739175738567,3.77024,2652.4,2652.1,2.23559121]
[1739175738736,4.57455,2652.2,2652.1,0.05379222]
[1739175739236,0.8041,2652.2,2651.7,2.18179899]
[1739175739462,3.77088,2651.9,2651.7,2.18179899]
[1739175739643,3.77088,2651.9,2651.8,0.04759489]
[1739175740048,3.77088,2651.9,2651.7,2.18179899]
[1739175740275,3.77088,2651.9,2651.8,0.04759489]
[1739175740436,3.77024,2652.4,2651.8,0.04759489]
[1739175740640,3.77027,2652.4,2652.1,2.18179899]
[1739175740834,3.76995,2652.6,2652.1,2.18179899]
[1739175741036,3.76995,2652.6,2652.5,2.18179899]
[1739175741442,3.76965,2652.8,2652.5,2.22897658]
[1739175741753,3.76975,2652.7,2652.5,2.22897658]
[1739175743975,3.76988,2652.6,2652.5,2.22897658]
[1739175744747,3.76988,2652.6,2652.5,2.18179899]
[1739175745075,3.76988,2652.6,2652.5,2.22653956]
[1739175746449,3.76988,2652.6,2652.5,2.18179899]
[1739175747185,3.76975,2652.7,2652.5,2.22666303]
[1739175747779,3.76988,2652.6,2652.5,2.22666303]
[1739175748383,4.57398,2652.6,2652.5,0.04486404]
[1739175748910,3.77073,2652.0,2651.9,2.18179899]
[1739175749283,3.77073,2652.0,2651.9,0.04193984]
[1739175749484,3.7708,2652.0,2651.9,2.18179899]
[1739175749715,3.77073,2652.0,2651.9,2.18179899]
[1739175750239,3.77073,2652.0,2651.9,2.22373883]
[1739175750407,3.77073,2652.0,2651.9,2.18179899]
[1739175754018,3.77073,2652.0,2651.9,2.22406285]
[1739175754788,3.77068,2652.1,2651.9,2.22406285]
[1739175754983,3.77036,2652.3,2651.9,2.22406285]
[1739175755298,3.77036,2652.3,2652.2,2.18179899]
[1739175755722,3.77036,2652.3,2652.2,2.22390854]
[1739175757423,3.77005,2652.5,2652.2,2.22390854]
[1739175758494,7.54018,2652.5,2652.2,2.22390854]
[1739175758788,3.77005,2652.5,2652.2,2.22390854]
[1739175759468,3.77019,2652.4,2652.2,2.22390854]
[1739175759621,3.77031,2652.3,2652.2,2.22390854]
[1739175761326,4.56231,2652.3,2652.2,2.22390854]
[1739175762527,4.56231,2652.3,2651.9,5.96668256]
[1739175762826,3.77073,2652.0,2651.9,5.96668256]
[1739175765710,0.792,2652.6,2651.9,5.96668256]
[1739175766029,3.77073,2652.0,2651.9,3.78488357]
[1739175767129,3.77073,2652.0,2651.9,3.82729392]
[1739175767630,3.77073,2652.0,2651.9,6.00909291]
[1739175768019,3.77073,2652.0,2651.9,3.92e-06]
[1739175768212,8.11273,2652.0,2651.9,1.53e-06]
[1739175768406,3.77201,2651.1,2651.0,2.18179899]
[1739175768936,3.77201,2651.1,2651.0,2.21840269]
[1739175780463,4.57291,2651.1,2651.0,2.21840269]
[1739175781334,3.77201,2651.1,2651.0,2.21840269]
[1739175782632,7.54387,2651.2,2651.0,2.21840269]
[1739175782833,3.77201,2651.1,2651.0,2.21840269]
[1739175783064,3.77187,2651.2,2651.0,2.21840269]
[1739175783269,3.77201,2651.1,2651.0,2.21840269]
[1739175784566,3.77187,2651.2,2651.0,2.21840269]
[1739175784897,7.54388,2651.2,2651.0,2.21840269]
[1739175785044,3.77187,2651.2,2651.0,2.21840269]
[1739175785441,3.77201,2651.1,2651.0,2.21840269]
[1739175787466,4.57131,2651.1,2651.0,2.21840269]
[1739175789418,3.77187,2651.2,2651.0,2.21840269]
[1739175790115,7.54339,2651.4,2651.0,2.21840269]
[1739175790267,3.77144,2651.6,2651.3,2.18179899]
[1739175790467,4.57031,2651.9,2651.5,2.18179899]
[1739175790681,3.77101,2651.9,2651.8,2.18179899]
[1739175791280,3.77101,2651.9,2651.8,2.21839759]
[1739175791462,3.77101,2651.9,2651.8,2.18179899]
[1739175793994,3.77101,2651.9,2651.8,2.21803507]
[1739175795867,3.77101,2651.9,2651.8,2.18179899]
[1739175796085,3.77101,2651.9,2651.8,2.21803507]
[1739175797005,3.77074,2652.0,2651.8,2.18179899]
[1739175797515,3.77088,2651.9,2651.8,2.18179899]
[1739175809914,0.7993,2652.2,2651.8,2.18179899]
[1739175810206,2.18179899,2654.4,2652.1,2.18179899]
[1739175810207,3.76968,2652.8,2652.1,2.18179899]
[1739175810410,3.76989,2652.6,2652.0,5.95244899]
[1739175810575,3.77003,2652.5,2652.0,2.18179899]
[1739175810771,3.76989,2652.6,2652.0,2.18179899]
[1739175810971,3.76989,2652.6,2652.0,5.95252899]
[1739175811181,3.76989,2652.6,2652.5,2.18179899]
[1739175811705,3.76963,2652.8,2652.5,2.18179899]
[1739175812280,3.76976,2652.7,2652.5,2.18179899]
[1739175813497,3.76963,2652.8,2652.5,2.18179899]
[1739175813835,3.76988,2652.6,2652.5,2.18179899]
[1739175816383,3.76988,2652.6,2651.2,0.3778]
[1739175816384,4.56961,2652.3,2652.2,2.18179899]
[1739175816618,7.56961,2652.3,2651.9,2.18179899]
[1739175816805,0.784,2652.2,2651.9,2.18179899]
[1739175817005,3.784,2652.2,2651.9,2.18179899]
[1739175817208,3.77116,2651.7,2651.6,2.18179899]
[1739175817404,4.55516,2651.7,2651.6,2.18179899]
[1739175818910,3.77159,2651.4,2651.3,2.18179899]
[1739175819681,4.55559,2651.4,2651.0,5.32725885]
[1739175820010,3.77201,2651.1,2651.0,5.32725885]
[1739175822293,4.55601,2651.1,2651.0,5.32725885]
[1739175823731,4.55601,2651.1,2651.0,3.14545986]
[1739175824423,4.55601,2651.1,2651.0,5.32725885]